[Event "*** Titled Tuesday 3|2 Blitz"]
[Site "Chess.com"]
[Date "2015.11.03"]
[Round "7"]
[White "AlexanderL"]
[Black "FairChess_on_YouTube"]
[Result "1-0"]
[WhiteElo "2576"]
[BlackElo "2695"]
[TimeControl "180+2"]
[EndTime "12:32:20 PST"]
[Termination "AlexanderL won by resignation"]

1. d4 {[%clk 0:03:01.9]} 1... d5 {[%clk 0:02:59.1]} 2. Bf4 {[%clk 0:03:02]} 2...
Nf6 {[%clk 0:02:59.2]} 3. e3 {[%clk 0:03:02.9]} 3... c5 {[%clk 0:02:58.8]} 4. c3
{[%clk 0:03:03.9]} 4... Nc6 {[%clk 0:02:57.6]} 5. Nd2 {[%clk 0:03:03.8]} 5... g6
{[%clk 0:02:48]} 6. Ngf3 {[%clk 0:03:03.3]} 6... Nd7 {[%clk 0:02:48]} 7. Be2
{[%clk 0:02:58.9]} 7... Bg7 {[%clk 0:02:49]} 8. O-O {[%clk 0:02:58.2]} 8... O-O
{[%clk 0:02:50.5]} 9. Qb3 {[%clk 0:02:52.2]} 9... c4 {[%clk 0:02:35.4]} 10. Qa3
{[%clk 0:02:52.2]} 10... e5 {[%clk 0:02:26.7]} 11. dxe5 {[%clk 0:02:51.7]} 11...
Ndxe5 {[%clk 0:02:27.3]} 12. Nxe5 {[%clk 0:02:52.2]} 12... Nxe5 {[%clk
0:02:24.5]} 13. Nf3 {[%clk 0:02:52]} 13... Nxf3+ {[%clk 0:01:37.6]} 14. Bxf3
{[%clk 0:02:52]} 14... Bf5 {[%clk 0:01:39.2]} 15. Bd6 {[%clk 0:02:39.8]} 15...
Re8 {[%clk 0:01:36.8]} 16. Bxd5 {[%clk 0:02:38.1]} 16... Bf8 {[%clk 0:01:28.9]}
17. Bxf8 {[%clk 0:02:32.2]} 17... Qxd5 {[%clk 0:01:30.5]} 18. Qd6 {[%clk
0:02:17.4]} 18... Qd3 {[%clk 0:01:08.2]} 19. Rfd1 {[%clk 0:02:05.7]} 19... Qxd6
{[%clk 0:01:00.1]} 20. Bxd6 {[%clk 0:02:05.8]} 20... Bd3 {[%clk 0:01:01.7]} 21.
Bc5 {[%clk 0:02:02.5]} 21... b5 {[%clk 0:00:55]} 22. Rd2 {[%clk 0:01:59.4]}
22... a5 {[%clk 0:00:48.6]} 23. f3 {[%clk 0:01:59.6]} 23... a4 {[%clk
0:00:44.6]} 24. a3 {[%clk 0:01:57.9]} 24... f5 {[%clk 0:00:45.1]} 25. Kf2 {[%clk
0:01:58.4]} 25... h5 {[%clk 0:00:41.7]} 26. Bd4 {[%clk 0:01:56.4]} 26... Kh7
{[%clk 0:00:42.3]} 27. h4 {[%clk 0:01:51.5]} 27... Re6 {[%clk 0:00:43.9]} 28.
Kg3 {[%clk 0:01:52.5]} 28... Rae8 {[%clk 0:00:42]} 29. Kf4 {[%clk 0:01:53.6]}
29... Kh6 {[%clk 0:00:43.2]} 30. Rg1 {[%clk 0:01:52.3]} 30... Rf8 {[%clk
0:00:42.6]} 31. Rdd1 {[%clk 0:01:51.8]} 31... Rf7 {[%clk 0:00:43.6]} 32. Rde1
{[%clk 0:01:52.5]} 32... Re8 {[%clk 0:00:43.6]} 33. Rh1 {[%clk 0:01:53.3]} 33...
Re6 {[%clk 0:00:44.3]} 34. Reg1 {[%clk 0:01:39.5]} 34... Re8 {[%clk 0:00:43.5]}
35. Kg3 {[%clk 0:01:38.8]} 35... Re6 {[%clk 0:00:43.3]} 36. Kf2 {[%clk
0:01:39.7]} 36... Re8 {[%clk 0:00:41.2]} 37. Ke1 {[%clk 0:01:40.3]} 37... Re6
{[%clk 0:00:42.2]} 38. Kd2 {[%clk 0:01:41.4]} 38... Re8 {[%clk 0:00:42.7]} 39.
Rh2 {[%clk 0:01:39.4]} 39... Re6 {[%clk 0:00:43.2]} 40. g3 {[%clk 0:00:37]}
40... Kh7 {[%clk 0:00:42.1]} 41. Rf2 {[%clk 0:00:38.3]} 41... Kh6 {[%clk
0:00:40.5]} 42. Rgg2 {[%clk 0:00:39.6]} 42... Re8 {[%clk 0:00:31.7]} 43. Ke1
{[%clk 0:00:39]} 43... Re6 {[%clk 0:00:17.5]} 44. Rd2 {[%clk 0:00:40]} 44...
Rfe7 {[%clk 0:00:16.7]} 45. Kf2 {[%clk 0:00:41.1]} 45... Rf7 {[%clk 0:00:17.9]}
46. Kg1 {[%clk 0:00:42.4]} 46... Re8 {[%clk 0:00:18.6]} 47. Kh2 {[%clk
0:00:41.1]} 47... Kh7 {[%clk 0:00:19.3]} 48. Rdf2 {[%clk 0:00:40.2]} 48... Kh6
{[%clk 0:00:16.2]} 49. g4 {[%clk 0:00:41.3]} 49... fxg4 {[%clk 0:00:16.2]} 50.
fxg4 {[%clk 0:00:42.4]} 50... Ref8 {[%clk 0:00:16.9]} 51. g5+ {[%clk 0:00:42.2]}
51... Kh7 {[%clk 0:00:18]} 52. Rf6 {[%clk 0:00:43.4]} 52... Bf5 {[%clk
0:00:14.8]} 53. Rf2 {[%clk 0:00:44.1]} 53... Kg8 {[%clk 0:00:15.3]} 54. R2xf5
{[%clk 0:00:38.2]} 1-0

[Event "*** Titled Tuesday 3|2 Blitz"]
[Site "Chess.com"]
[Date "2015.11.03"]
[Round "7"]
[White "AndrewMcStone"]
[Black "stepanosinovsky"]
[Result "1-0"]
[WhiteElo "2004"]
[BlackElo "2203"]
[TimeControl "180+2"]
[EndTime "12:32:20 PST"]
[Termination "AndrewMcStone won on time"]

1. d4 {[%clk 0:03:01.9]} 1... Nf6 {[%clk 0:03:00.2]} 2. c4 {[%clk 0:03:01.8]}
2... g6 {[%clk 0:02:57.7]} 3. Nc3 {[%clk 0:03:02.6]} 3... Bg7 {[%clk 0:02:59.6]}
4. e4 {[%clk 0:03:03.5]} 4... O-O {[%clk 0:03:00.9]} 5. f4 {[%clk 0:03:04.7]}
5... c5 {[%clk 0:03:00.4]} 6. d5 {[%clk 0:03:03.3]} 6... e6 {[%clk 0:03:01.4]}
7. dxe6 {[%clk 0:02:49.2]} 7... dxe6 {[%clk 0:02:49.6]} 8. Qxd8 {[%clk
0:02:46.1]} 8... Rxd8 {[%clk 0:02:51.5]} 9. e5 {[%clk 0:02:47.1]} 9... Nfd7
{[%clk 0:02:33.1]} 10. Nf3 {[%clk 0:02:40.9]} 10... Nc6 {[%clk 0:02:32.4]} 11.
Be3 {[%clk 0:02:36.9]} 11... b6 {[%clk 0:02:04.2]} 12. Ne4 {[%clk 0:02:14.5]}
12... f6 {[%clk 0:01:53.4]} 13. O-O-O {[%clk 0:01:10.9]} 13... fxe5 {[%clk
0:00:59.9]} 14. Neg5 {[%clk 0:01:08.1]} 14... Nd4 {[%clk 0:00:52.1]} 15. Bxd4
{[%clk 0:00:45.9]} 15... exd4 {[%clk 0:00:50.5]} 16. Nxe6 {[%clk 0:00:46.6]}
16... Bb7 {[%clk 0:00:43.4]} 17. Nxd8 {[%clk 0:00:47.1]} 17... Bxf3 {[%clk
0:00:41.1]} 18. gxf3 {[%clk 0:00:45.1]} 18... Rxd8 {[%clk 0:00:40.8]} 19. Bh3
{[%clk 0:00:42.5]} 19... Bh6 {[%clk 0:00:31]} 20. Rhe1 {[%clk 0:00:34.5]} 20...
Bxf4+ {[%clk 0:00:31.5]} 21. Kc2 {[%clk 0:00:35.5]} 21... Ne5 {[%clk 0:00:22.6]}
22. Be6+ {[%clk 0:00:36.1]} 22... Kg7 {[%clk 0:00:21.9]} 23. Re4 {[%clk
0:00:32.2]} 23... g5 {[%clk 0:00:21.8]} 24. Rg1 {[%clk 0:00:28.7]} 24... Kf6
{[%clk 0:00:21.9]} 25. Bd5 {[%clk 0:00:25.6]} 25... b5 {[%clk 0:00:20.1]} 26. b3
{[%clk 0:00:26]} 26... a5 {[%clk 0:00:18.1]} 27. h4 {[%clk 0:00:22.5]} 27...
bxc4 {[%clk 0:00:11]} 28. bxc4 {[%clk 0:00:22.9]} 28... d3+ {[%clk 0:00:10.9]}
29. Kc3 {[%clk 0:00:17.7]} 29... h6 {[%clk 0:00:10]} 30. hxg5+ {[%clk
0:00:18.6]} 30... hxg5 {[%clk 0:00:10.4]} 31. Rh1 {[%clk 0:00:20]} 31... Rb8
{[%clk 0:00:09]} 32. Rh6+ {[%clk 0:00:17]} 32... Kg7 {[%clk 0:00:10]} 33. Rh1
{[%clk 0:00:17.5]} 33... Kg6 {[%clk 0:00:09.2]} 34. Rg1 {[%clk 0:00:17.1]} 34...
Kf6 {[%clk 0:00:09.6]} 35. Rxe5 {[%clk 0:00:12.3]} 35... Bxe5+ {[%clk
0:00:09.3]} 36. Kxd3 {[%clk 0:00:13.4]} 36... Rb2 {[%clk 0:00:10.8]} 37. a4
{[%clk 0:00:12.9]} 37... Ra2 {[%clk 0:00:11.1]} 38. Bc6 {[%clk 0:00:13.7]} 38...
Bd4 {[%clk 0:00:09.8]} 39. Rh1 {[%clk 0:00:12.3]} 39... Ke5 {[%clk 0:00:10.3]}
40. Re1+ {[%clk 0:00:12.1]} 40... Kf5 {[%clk 0:00:11.3]} 41. Re2 {[%clk
0:00:10.2]} 41... Ra3+ {[%clk 0:00:11.8]} 42. Kd2 {[%clk 0:00:09.9]} 42... Rc3
{[%clk 0:00:10.8]} 43. Re8 {[%clk 0:00:08.9]} 1-0

[Event "*** Titled Tuesday 3|2 Blitz"]
[Site "Chess.com"]
[Date "2015.11.03"]
[Round "7"]
[White "Matibar"]
[Black "gmjlh"]
[Result "1-0"]
[WhiteElo "2444"]
[BlackElo "2604"]
[TimeControl "180+2"]
[EndTime "12:33:27 PST"]
[Termination "Matibar won by resignation"]

1. g3 {[%clk 0:02:59]} 1... e5 {[%clk 0:02:58.4]} 2. Bg2 {[%clk 0:02:58.8]} 2...
d5 {[%clk 0:02:59.3]} 3. d3 {[%clk 0:02:59.1]} 3... Nf6 {[%clk 0:02:59.2]} 4.
Nf3 {[%clk 0:03:00.1]} 4... Nc6 {[%clk 0:02:59.8]} 5. O-O {[%clk 0:03:00.6]}
5... Be7 {[%clk 0:03:00.2]} 6. c3 {[%clk 0:02:52.6]} 6... O-O {[%clk 0:02:59.1]}
7. Qc2 {[%clk 0:02:52.6]} 7... Re8 {[%clk 0:02:57.4]} 8. e4 {[%clk 0:02:53.2]}
8... h6 {[%clk 0:02:57.7]} 9. h3 {[%clk 0:02:53.3]} 9... Bf8 {[%clk 0:02:58.2]}
10. Re1 {[%clk 0:02:53.5]} 10... Be6 {[%clk 0:02:44.8]} 11. Nbd2 {[%clk
0:02:48.7]} 11... Qd7 {[%clk 0:02:42.8]} 12. Kh2 {[%clk 0:02:47.4]} 12... Rad8
{[%clk 0:02:35.2]} 13. Nb3 {[%clk 0:02:16.1]} 13... a5 {[%clk 0:02:30.7]} 14.
Be3 {[%clk 0:02:11.3]} 14... dxe4 {[%clk 0:02:24.9]} 15. dxe4 {[%clk 0:02:11.4]}
15... Qd3 {[%clk 0:02:17.7]} 16. Qxd3 {[%clk 0:02:09.3]} 16... Rxd3 {[%clk
0:02:19.6]} 17. Bf1 {[%clk 0:02:08.9]} 17... Rdd8 {[%clk 0:02:13.1]} 18. Nc5
{[%clk 0:02:02.1]} 18... Bc8 {[%clk 0:02:00.1]} 19. Bb5 {[%clk 0:02:02]} 19...
Nd7 {[%clk 0:01:59]} 20. Bxc6 {[%clk 0:02:01.7]} 20... bxc6 {[%clk 0:02:00.8]}
21. Nxd7 {[%clk 0:02:02.1]} 21... Rxd7 {[%clk 0:02:00.3]} 22. Red1 {[%clk
0:02:02.7]} 22... f6 {[%clk 0:01:59.4]} 23. Rxd7 {[%clk 0:02:02.5]} 23... Bxd7
{[%clk 0:02:00.2]} 24. Nd2 {[%clk 0:01:56.4]} 24... Be6 {[%clk 0:01:58.5]} 25.
a4 {[%clk 0:01:39.9]} 25... Rd8 {[%clk 0:01:53.9]} 26. h4 {[%clk 0:01:38.2]}
26... c5 {[%clk 0:01:49.2]} 27. Kg2 {[%clk 0:01:38.2]} 27... c4 {[%clk
0:01:49.1]} 28. Kf1 {[%clk 0:01:38.1]} 28... g5 {[%clk 0:01:43.9]} 29. hxg5
{[%clk 0:01:36.7]} 29... hxg5 {[%clk 0:01:33.1]} 30. Ke2 {[%clk 0:01:37.8]}
30... g4 {[%clk 0:01:33.8]} 31. Kd1 {[%clk 0:01:38.3]} 31... f5 {[%clk
0:01:14.7]} 32. Kc2 {[%clk 0:01:14.4]} 32... fxe4 {[%clk 0:01:14.7]} 33. Rh1
{[%clk 0:01:14.6]} 33... Bg7 {[%clk 0:01:01.3]} 34. Rh5 {[%clk 0:01:13.1]} 34...
Kf7 {[%clk 0:00:51.5]} 35. Nxe4 {[%clk 0:01:12.2]} 35... Bd7 {[%clk 0:00:45.9]}
36. Nc5 {[%clk 0:00:57.2]} 36... Bc6 {[%clk 0:00:42.8]} 37. Rf5+ {[%clk
0:00:54.5]} 37... Kg8 {[%clk 0:00:42.6]} 38. Rg5 {[%clk 0:00:54.9]} 38... Re8
{[%clk 0:00:32.6]} 39. Rxg4 {[%clk 0:00:53.4]} 39... Bf3 {[%clk 0:00:32.2]} 40.
Rxc4 {[%clk 0:00:51.3]} 40... c6 {[%clk 0:00:25.1]} 41. Rh4 {[%clk 0:00:47.4]}
41... Bf8 {[%clk 0:00:22.7]} 42. Ne4 {[%clk 0:00:47.4]} 42... Be7 {[%clk
0:00:17.8]} 43. Ng5 {[%clk 0:00:48.3]} 43... Bxg5 {[%clk 0:00:17.2]} 44. Bxg5
{[%clk 0:00:49.4]} 44... Kg7 {[%clk 0:00:18.5]} 45. Rh6 {[%clk 0:00:47.2]} 45...
Rf8 {[%clk 0:00:13.1]} 46. Be3 {[%clk 0:00:33.5]} 46... Rd8 {[%clk 0:00:14.3]}
47. b3 {[%clk 0:00:28.6]} 47... Bd1+ {[%clk 0:00:15.5]} 48. Kb2 {[%clk
0:00:26.8]} 48... Rb8 {[%clk 0:00:16.6]} 49. Rxc6 {[%clk 0:00:26.6]} 49... Bxb3
{[%clk 0:00:16.3]} 50. Ka3 {[%clk 0:00:22.9]} 50... Bd1 {[%clk 0:00:15.1]} 51.
Bb6 {[%clk 0:00:21.4]} 51... Rf8 {[%clk 0:00:09.4]} 52. Rd6 {[%clk 0:00:20.6]}
52... Bc2 {[%clk 0:00:10.1]} 53. Rd2 {[%clk 0:00:21.1]} 53... Be4 {[%clk
0:00:10.1]} 54. Bxa5 {[%clk 0:00:22.1]} 54... Ra8 {[%clk 0:00:11.5]} 55. Bb6
{[%clk 0:00:22]} 55... Rc8 {[%clk 0:00:11.8]} 56. Kb4 {[%clk 0:00:21.7]} 56...
Kg6 {[%clk 0:00:13.1]} 57. a5 {[%clk 0:00:22.6]} 57... Kf5 {[%clk 0:00:14.6]}
58. c4 {[%clk 0:00:23.4]} 58... Ra8 {[%clk 0:00:15.8]} 59. Kb5 {[%clk
0:00:22.4]} 59... Bb7 {[%clk 0:00:16.7]} 60. Rd7 {[%clk 0:00:22.9]} 60... Ba6+
{[%clk 0:00:16.7]} 61. Kb4 {[%clk 0:00:24.1]} 61... Ke6 {[%clk 0:00:17.5]} 62.
Rd8 {[%clk 0:00:23.3]} 62... Rxd8 {[%clk 0:00:18]} 63. Bxd8 {[%clk 0:00:25.2]}
63... e4 {[%clk 0:00:15.6]} 64. Bb6 {[%clk 0:00:24.8]} 64... Kd6 {[%clk
0:00:14.9]} 65. Be3 {[%clk 0:00:25.1]} 65... Ke6 {[%clk 0:00:16.2]} 66. Kc5
{[%clk 0:00:25.5]} 66... Ke5 {[%clk 0:00:17.1]} 67. g4 {[%clk 0:00:26.5]} 67...
Ke6 {[%clk 0:00:18.2]} 68. g5 {[%clk 0:00:27.4]} 68... Kf5 {[%clk 0:00:19.5]}
69. Kd5 {[%clk 0:00:27.8]} 69... Kg6 {[%clk 0:00:20.9]} 70. c5 {[%clk
0:00:28.6]} 1-0

[Event "*** Titled Tuesday 3|2 Blitz"]
[Site "Chess.com"]
[Date "2015.11.03"]
[Round "7"]
[White "jcibarra"]
[Black "GeorgMeier"]
[Result "1/2-1/2"]
[WhiteElo "2535"]
[BlackElo "2611"]
[TimeControl "180+2"]
[EndTime "12:33:49 PST"]
[Termination "Game drawn - insufficient material"]

1. e4 {[%clk 0:03:01.9]} 1... e6 {[%clk 0:03:01.9]} 2. d4 {[%clk 0:03:03.1]}
2... d5 {[%clk 0:03:03.5]} 3. Bd3 {[%clk 0:03:04.7]} 3... dxe4 {[%clk
0:03:03.1]} 4. Bxe4 {[%clk 0:03:06.6]} 4... Nf6 {[%clk 0:03:04.8]} 5. Bf3 {[%clk
0:03:07.8]} 5... c5 {[%clk 0:03:06.3]} 6. Ne2 {[%clk 0:03:08.7]} 6... Be7 {[%clk
0:03:07.6]} 7. Be3 {[%clk 0:03:05.8]} 7... O-O {[%clk 0:02:36]} 8. O-O {[%clk
0:03:01.8]} 8... Qa5 {[%clk 0:02:28.5]} 9. Nd2 {[%clk 0:02:55.3]} 9... Rd8
{[%clk 0:02:24]} 10. c3 {[%clk 0:02:44.1]} 10... Nbd7 {[%clk 0:01:30.3]} 11.
dxc5 {[%clk 0:02:39.1]} 11... Ne5 {[%clk 0:01:28.9]} 12. Qc2 {[%clk 0:02:33.5]}
12... Qc7 {[%clk 0:01:08.2]} 13. b4 {[%clk 0:02:22.9]} 13... Bd7 {[%clk
0:01:01.4]} 14. Bf4 {[%clk 0:02:18.7]} 14... Nxf3+ {[%clk 0:00:48.7]} 15. Nxf3
{[%clk 0:02:18.2]} 15... Qc8 {[%clk 0:00:49.8]} 16. Ne5 {[%clk 0:02:13.1]} 16...
b6 {[%clk 0:00:45.8]} 17. cxb6 {[%clk 0:01:55.4]} 17... axb6 {[%clk 0:00:47.7]}
18. Nxd7 {[%clk 0:01:55.5]} 18... Rxd7 {[%clk 0:00:46.7]} 19. Qb3 {[%clk
0:01:54.5]} 19... b5 {[%clk 0:00:35.1]} 20. Nd4 {[%clk 0:01:33.6]} 20... Nd5
{[%clk 0:00:33.8]} 21. Bd2 {[%clk 0:01:34.2]} 21... Qa6 {[%clk 0:00:31.5]} 22.
Nxb5 {[%clk 0:01:23]} 22... Qxb5 {[%clk 0:00:26.7]} 23. c4 {[%clk 0:01:24.2]}
23... Qa4 {[%clk 0:00:25.1]} 24. cxd5 {[%clk 0:01:21.4]} 24... Rxd5 {[%clk
0:00:26.4]} 25. Qb2 {[%clk 0:01:03.3]} 25... Bf6 {[%clk 0:00:21]} 26. Bc3 {[%clk
0:01:04.2]} 26... Bxc3 {[%clk 0:00:16.7]} 27. Qxc3 {[%clk 0:01:06.1]} 27... Qa3
{[%clk 0:00:15.1]} 28. Rfc1 {[%clk 0:01:01]} 28... h5 {[%clk 0:00:13.5]} 29.
Qxa3 {[%clk 0:00:57.4]} 29... Rxa3 {[%clk 0:00:15.4]} 30. Rc2 {[%clk 0:00:55.2]}
30... h4 {[%clk 0:00:14.1]} 31. h3 {[%clk 0:00:49.4]} 31... Rb5 {[%clk
0:00:14.7]} 32. Rb1 {[%clk 0:00:47.4]} 32... g5 {[%clk 0:00:12.3]} 33. Kf1
{[%clk 0:00:44.5]} 33... Kg7 {[%clk 0:00:12.9]} 34. Ke2 {[%clk 0:00:45.3]} 34...
Kf6 {[%clk 0:00:13.9]} 35. Kd2 {[%clk 0:00:43.1]} 35... Ke5 {[%clk 0:00:13.8]}
36. Rbb2 {[%clk 0:00:35]} 36... Kd4 {[%clk 0:00:12.4]} 37. Rc7 {[%clk
0:00:33.9]} 37... f5 {[%clk 0:00:12.2]} 38. Ke2 {[%clk 0:00:28.5]} 38... Ra4
{[%clk 0:00:10.9]} 39. Rd2+ {[%clk 0:00:29.5]} 39... Ke5 {[%clk 0:00:12.2]} 40.
Rc5+ {[%clk 0:00:21.5]} 40... Rxc5 {[%clk 0:00:13.2]} 41. bxc5 {[%clk
0:00:23.4]} 41... Rc4 {[%clk 0:00:14.8]} 42. a3 {[%clk 0:00:19.3]} 42... Rxc5
{[%clk 0:00:14.2]} 43. Ra2 {[%clk 0:00:20.4]} 43... Ra5 {[%clk 0:00:15]} 44. a4
{[%clk 0:00:21.8]} 44... Kd4 {[%clk 0:00:16.2]} 45. Kd2 {[%clk 0:00:19.2]} 45...
e5 {[%clk 0:00:16.6]} 46. Ke2 {[%clk 0:00:20.4]} 46... e4 {[%clk 0:00:17.7]} 47.
Kd2 {[%clk 0:00:20.5]} 47... f4 {[%clk 0:00:18.7]} 48. Ke2 {[%clk 0:00:21.9]}
48... Kc4 {[%clk 0:00:20.1]} 49. Ra1 {[%clk 0:00:19.9]} 49... Kb3 {[%clk
0:00:18.3]} 50. g3 {[%clk 0:00:16]} 50... Rxa4 {[%clk 0:00:18.8]} 51. Rb1+
{[%clk 0:00:13.1]} 51... Kc4 {[%clk 0:00:19.9]} 52. gxf4 {[%clk 0:00:13]} 52...
gxf4 {[%clk 0:00:20.4]} 53. Rb2 {[%clk 0:00:12.6]} 53... Kc3 {[%clk 0:00:18.1]}
54. Rb8 {[%clk 0:00:12.5]} 54... Ra2+ {[%clk 0:00:16]} 55. Ke1 {[%clk
0:00:13.4]} 55... Ra1+ {[%clk 0:00:16.2]} 56. Ke2 {[%clk 0:00:14.9]} 56... f3+
{[%clk 0:00:10.7]} 57. Ke3 {[%clk 0:00:16.2]} 57... Re1+ {[%clk 0:00:12.1]} 58.
Kf4 {[%clk 0:00:17.6]} 58... Re2 {[%clk 0:00:13.4]} 59. Rd8 {[%clk 0:00:16.8]}
59... Kc2 {[%clk 0:00:11.8]} 60. Rd7 {[%clk 0:00:17.9]} 60... Re1 {[%clk
0:00:07.8]} 61. Rd4 {[%clk 0:00:18.2]} 61... Re2 {[%clk 0:00:07]} 62. Rxe4
{[%clk 0:00:18.7]} 62... Rxf2 {[%clk 0:00:08]} 63. Re3 {[%clk 0:00:19.2]} 63...
Kd2 {[%clk 0:00:07.4]} 64. Rxf3 {[%clk 0:00:20.6]} 64... Rxf3+ {[%clk
0:00:08.7]} 65. Kxf3 {[%clk 0:00:22]} 65... Kd3 {[%clk 0:00:10.6]} 66. Kg4
{[%clk 0:00:23.9]} 66... Ke4 {[%clk 0:00:12.3]} 67. Kxh4 {[%clk 0:00:25.5]}
67... Kf5 {[%clk 0:00:14]} 68. Kh5 {[%clk 0:00:27.4]} 68... Kf6 {[%clk
0:00:15.5]} 69. h4 {[%clk 0:00:29.3]} 69... Kg7 {[%clk 0:00:16.8]} 70. Kg5
{[%clk 0:00:30.5]} 70... Kh7 {[%clk 0:00:18.7]} 71. h5 {[%clk 0:00:32.4]} 71...
Kh8 {[%clk 0:00:20.1]} 72. h6 {[%clk 0:00:34.3]} 72... Kh7 {[%clk 0:00:22]} 73.
Kf4 {[%clk 0:00:36.2]} 73... Kh8 {[%clk 0:00:23.9]} 74. Ke3 {[%clk 0:00:37.7]}
74... Kh7 {[%clk 0:00:25.8]} 75. Kd2 {[%clk 0:00:39.6]} 75... Kh8 {[%clk
0:00:27.7]} 76. h7 {[%clk 0:00:40.7]} 76... Kxh7 {[%clk 0:00:29.6]} 1/2-1/2

[Event "*** Titled Tuesday 3|2 Blitz"]
[Site "Chess.com"]
[Date "2015.11.03"]
[Round "7"]
[White "pedromartinez91"]
[Black "Sadovsky_Artem"]
[Result "1-0"]
[WhiteElo "2214"]
[BlackElo "2395"]
[TimeControl "180+2"]
[EndTime "12:34:38 PST"]
[Termination "pedromartinez91 won on time"]

1. e4 {[%clk 0:03:01.9]} 1... g6 {[%clk 0:02:54.3]} 2. Nf3 {[%clk 0:03:01.6]}
2... Bg7 {[%clk 0:02:50]} 3. d4 {[%clk 0:03:01.9]} 3... d6 {[%clk 0:02:50.8]} 4.
Nc3 {[%clk 0:03:02.8]} 4... e5 {[%clk 0:02:45.1]} 5. dxe5 {[%clk 0:03:01.6]}
5... dxe5 {[%clk 0:02:45]} 6. Qxd8+ {[%clk 0:03:01.7]} 6... Kxd8 {[%clk
0:02:46.7]} 7. Bc4 {[%clk 0:03:02.3]} 7... f6 {[%clk 0:02:47.5]} 8. Be3 {[%clk
0:03:02.7]} 8... Nd7 {[%clk 0:02:49.1]} 9. O-O-O {[%clk 0:03:02.7]} 9... Bh6
{[%clk 0:02:50]} 10. Bxg8 {[%clk 0:02:58.3]} 10... Bxe3+ {[%clk 0:02:48.3]} 11.
fxe3 {[%clk 0:02:59.7]} 11... Rxg8 {[%clk 0:02:49]} 12. Nd5 {[%clk 0:03:00.3]}
12... Rf8 {[%clk 0:02:44.6]} 13. Rhf1 {[%clk 0:02:59.6]} 13... c6 {[%clk
0:02:44.5]} 14. Nb4 {[%clk 0:02:59]} 14... Ke7 {[%clk 0:02:39.8]} 15. Nd3 {[%clk
0:02:55.5]} 15... c5 {[%clk 0:02:08.4]} 16. b3 {[%clk 0:02:54.1]} 16... b6
{[%clk 0:02:09]} 17. Nb2 {[%clk 0:02:49.5]} 17... Bb7 {[%clk 0:02:09.1]} 18. Nd2
{[%clk 0:02:50.4]} 18... Rad8 {[%clk 0:02:08]} 19. a4 {[%clk 0:02:45.8]} 19...
Nb8 {[%clk 0:02:07.9]} 20. Nbc4 {[%clk 0:02:43.1]} 20... Na6 {[%clk 0:02:08.2]}
21. h4 {[%clk 0:02:35.6]} 21... Nc7 {[%clk 0:02:08.6]} 22. h5 {[%clk 0:02:34.3]}
22... g5 {[%clk 0:02:08.8]} 23. Rf2 {[%clk 0:02:20]} 23... Ne6 {[%clk
0:01:55.5]} 24. Rh1 {[%clk 0:02:02.2]} 24... g4 {[%clk 0:01:38.7]} 25. Rh4
{[%clk 0:02:01.4]} 25... Rg8 {[%clk 0:01:40.2]} 26. Na3 {[%clk 0:01:43.4]} 26...
g3 {[%clk 0:01:23.5]} 27. Rf3 {[%clk 0:01:35.8]} 27... Ng5 {[%clk 0:01:25]} 28.
Rf1 {[%clk 0:01:08.5]} 28... Rd7 {[%clk 0:01:13.1]} 29. Nb5 {[%clk 0:01:08.5]}
29... Rgd8 {[%clk 0:01:10.7]} 30. Nc4 {[%clk 0:01:09]} 30... Nxe4 {[%clk
0:01:09.5]} 31. Nxa7 {[%clk 0:01:07.6]} 31... Ba6 {[%clk 0:00:59.7]} 32. Nb5
{[%clk 0:01:05.6]} 32... Bxb5 {[%clk 0:00:58.9]} 33. axb5 {[%clk 0:01:06.1]}
33... Nc3 {[%clk 0:00:56.3]} 34. Nxb6 {[%clk 0:01:03.5]} 34... Rd1+ {[%clk
0:00:57.8]} 35. Rxd1 {[%clk 0:01:03.7]} 35... Rxd1+ {[%clk 0:00:58.1]} 36. Kb2
{[%clk 0:01:04.6]} 36... Nxb5 {[%clk 0:00:58.9]} 37. Rg4 {[%clk 0:01:04.9]}
37... Kf7 {[%clk 0:00:54.8]} 38. Rxg3 {[%clk 0:01:02.1]} 38... Nd6 {[%clk
0:00:56.4]} 39. Rg4 {[%clk 0:00:41.1]} 39... Re1 {[%clk 0:00:54]} 40. Nd5 {[%clk
0:00:39.8]} 40... Ke6 {[%clk 0:00:48.7]} 41. c4 {[%clk 0:00:38]} 41... Re2+
{[%clk 0:00:49]} 42. Ka3 {[%clk 0:00:38.6]} 42... Nf5 {[%clk 0:00:45.8]} 43. e4
{[%clk 0:00:35]} 43... Nd4 {[%clk 0:00:46.5]} 44. Rg7 {[%clk 0:00:33.4]} 44...
Rxe4 {[%clk 0:00:46.7]} 45. Rxh7 {[%clk 0:00:31.1]} 45... Rg4 {[%clk 0:00:46.6]}
46. Rh6 {[%clk 0:00:30.7]} 46... Rxg2 {[%clk 0:00:43.4]} 47. Rxf6+ {[%clk
0:00:31.6]} 47... Kd7 {[%clk 0:00:44.9]} 48. h6 {[%clk 0:00:27.2]} 48... Rg3
{[%clk 0:00:46.3]} 49. h7 {[%clk 0:00:28.2]} 49... Rxb3+ {[%clk 0:00:46.9]} 50.
Ka2 {[%clk 0:00:24.5]} 50... Rh3 {[%clk 0:00:45.2]} 51. Rf7+ {[%clk 0:00:24]}
51... Ke6 {[%clk 0:00:43.7]} 52. Rf6+ {[%clk 0:00:21.5]} 52... Kd7 {[%clk
0:00:44.6]} 53. Rf7+ {[%clk 0:00:21.7]} 53... Kd6 {[%clk 0:00:45.7]} 54. Nf6
{[%clk 0:00:21.2]} 54... Ne6 {[%clk 0:00:25.6]} 55. Rd7+ {[%clk 0:00:20.4]}
55... Kc6 {[%clk 0:00:26.6]} 56. Rf7 {[%clk 0:00:18]} 56... Rh2+ {[%clk
0:00:16.4]} 57. Kb1 {[%clk 0:00:18.4]} 57... Kd6 {[%clk 0:00:15.2]} 58. Rd7+
{[%clk 0:00:18.5]} 58... Kc6 {[%clk 0:00:16.7]} 59. Re7 {[%clk 0:00:18.5]} 59...
Ng5 {[%clk 0:00:17.2]} 60. Rg7 {[%clk 0:00:17.4]} 60... Nf3 {[%clk 0:00:10.4]}
61. Rg8 {[%clk 0:00:17.6]} 61... Nd2+ {[%clk 0:00:11.7]} 62. Kc1 {[%clk
0:00:16.1]} 62... Nb3+ {[%clk 0:00:07.1]} 63. Kd1 {[%clk 0:00:17.2]} 63... Rh1+
{[%clk 0:00:08.6]} 64. Ke2 {[%clk 0:00:16.2]} 64... Nd4+ {[%clk 0:00:10.1]} 65.
Kf2 {[%clk 0:00:17.2]} 65... Rh2+ {[%clk 0:00:07.4]} 66. Kg3 {[%clk 0:00:16.6]}
66... Rh6 {[%clk 0:00:04.3]} 67. h8=Q {[%clk 0:00:15.2]} 67... Rxh8 {[%clk
0:00:05.9]} 68. Rxh8 {[%clk 0:00:16]} 68... Nf5+ {[%clk 0:00:07.6]} 69. Kf3
{[%clk 0:00:15.6]} 69... Nd6 {[%clk 0:00:08.9]} 70. Ne4 {[%clk 0:00:12.8]} 70...
Nxc4 {[%clk 0:00:10]} 71. Rc8+ {[%clk 0:00:13.4]} 71... Kd5 {[%clk 0:00:11.7]}
72. Rxc5+ {[%clk 0:00:13.8]} 72... Kd4 {[%clk 0:00:13.5]} 73. Rc8 {[%clk
0:00:13.8]} 73... Kd5 {[%clk 0:00:12.1]} 74. Rd8+ {[%clk 0:00:14.2]} 74... Ke6
{[%clk 0:00:13.8]} 75. Ke2 {[%clk 0:00:13.6]} 75... Na5 {[%clk 0:00:10.9]} 76.
Rc8 {[%clk 0:00:13.2]} 76... Nb3 {[%clk 0:00:09.4]} 77. Nc5+ {[%clk 0:00:13.4]}
1-0